[Event "*** Titled Tuesday 3|2 Blitz"]
[Site "Chess.com"]
[Date "2015.06.02"]
[Round "3"]
[White "goldaxe"]
[Black "NFork"]
[Result "0-1"]
[WhiteElo "2145"]
[BlackElo "2083"]
[TimeControl "180+2"]
[EndTime "11:34:49 PDT"]
[Termination "NFork won on time"]

1. e4 {[%clk 0:03:01.9]} 1... Nf6 {[%clk 0:03:00.1]} 2. e5 {[%clk 0:02:59.6]}
2... Nd5 {[%clk 0:03:00.8]} 3. d4 {[%clk 0:03:00.2]} 3... d6 {[%clk 0:03:00.9]}
4. Nf3 {[%clk 0:03:01.8]} 4... dxe5 {[%clk 0:02:56.7]} 5. Nxe5 {[%clk
0:03:03.7]} 5... c6 {[%clk 0:02:57.2]} 6. Be2 {[%clk 0:03:04.6]} 6... Nd7 {[%clk
0:02:56.4]} 7. Nf3 {[%clk 0:03:04.4]} 7... g6 {[%clk 0:02:53.7]} 8. O-O {[%clk
0:02:52.2]} 8... Bg7 {[%clk 0:02:54.5]} 9. c4 {[%clk 0:02:53.5]} 9... Nc7 {[%clk
0:02:48.8]} 10. Nc3 {[%clk 0:02:54.5]} 10... O-O {[%clk 0:02:49.2]} 11. Re1
{[%clk 0:02:51.2]} 11... Nb6 {[%clk 0:02:45.2]} 12. h3 {[%clk 0:02:37.4]} 12...
h6 {[%clk 0:02:29.1]} 13. a4 {[%clk 0:02:23]} 13... Be6 {[%clk 0:02:29.3]} 14.
b3 {[%clk 0:02:21.4]} 14... c5 {[%clk 0:02:20.4]} 15. dxc5 {[%clk 0:01:38.8]}
15... Bxc3 {[%clk 0:02:20.2]} 16. cxb6 {[%clk 0:01:38.5]} 16... Qxd1 {[%clk
0:02:01.4]} 17. Rxd1 {[%clk 0:01:36.8]} 17... Bxa1 {[%clk 0:01:59.6]} 18. Bxh6
{[%clk 0:01:34.7]} 18... Bg7 {[%clk 0:02:00]} 19. Bxg7 {[%clk 0:01:32.1]} 19...
Kxg7 {[%clk 0:02:00.1]} 20. bxc7 {[%clk 0:01:34]} 20... Rac8 {[%clk 0:01:59.9]}
21. Nd4 {[%clk 0:01:32.4]} 21... Bd7 {[%clk 0:01:45.1]} 22. Nb5 {[%clk
0:01:06.5]} 22... Bxb5 {[%clk 0:01:44.7]} 23. axb5 {[%clk 0:01:07]} 23... Rxc7
{[%clk 0:01:45.5]} 24. Ra1 {[%clk 0:01:08.1]} 24... b6 {[%clk 0:01:38.4]} 25.
Bf3 {[%clk 0:01:09.1]} 25... Rd8 {[%clk 0:01:37.4]} 26. Kf1 {[%clk 0:00:47.9]}
26... Rd3 {[%clk 0:01:22.4]} 27. Rb1 {[%clk 0:00:34.1]} 27... Rcd7 {[%clk
0:01:14.9]} 28. Bd5 {[%clk 0:00:31.7]} 28... e6 {[%clk 0:01:05.8]} 29. Ke2
{[%clk 0:00:31.6]} 29... Rd4 {[%clk 0:00:56.4]} 30. Ke3 {[%clk 0:00:32.5]} 30...
Rh4 {[%clk 0:00:54.5]} 31. Bc6 {[%clk 0:00:21.8]} 31... Rc7 {[%clk 0:00:53.1]}
32. Rd1 {[%clk 0:00:22.1]} 32... Rh8 {[%clk 0:00:50.6]} 33. f4 {[%clk
0:00:15.5]} 33... Kf6 {[%clk 0:00:47.7]} 34. Ke4 {[%clk 0:00:16.4]} 34... Ke7
{[%clk 0:00:46.3]} 35. Rd3 {[%clk 0:00:17.9]} 35... Rh4 {[%clk 0:00:42.7]} 36.
g4 {[%clk 0:00:18.3]} 36... f6 {[%clk 0:00:35.1]} 37. Rf3 {[%clk 0:00:16]} 37...
Rh8 {[%clk 0:00:31.1]} 38. b4 {[%clk 0:00:17.1]} 38... Rd8 {[%clk 0:00:24.5]}
39. c5 {[%clk 0:00:17.4]} 39... f5+ {[%clk 0:00:23.1]} 40. Ke3 {[%clk
0:00:11.4]} 40... bxc5 {[%clk 0:00:21]} 41. bxc5 {[%clk 0:00:11.6]} 41... a6
{[%clk 0:00:22.2]} 42. gxf5 {[%clk 0:00:07.9]} 42... exf5 {[%clk 0:00:20.8]} 43.
Rg3 {[%clk 0:00:08.8]} 43... Kf6 {[%clk 0:00:21]} 44. Rg2 {[%clk 0:00:07.4]}
44... axb5 {[%clk 0:00:21.9]} 45. Bxb5 {[%clk 0:00:09.3]} 45... Rxc5 {[%clk
0:00:22.8]} 46. Bd3 {[%clk 0:00:06.2]} 46... Rc3 {[%clk 0:00:23.5]} 47. Rd2
{[%clk 0:00:07.2]} 47... g5 {[%clk 0:00:24.1]} 48. fxg5+ {[%clk 0:00:07.2]}
48... Kxg5 {[%clk 0:00:25.2]} 49. Rd1 {[%clk 0:00:06.8]} 49... Kh4 {[%clk
0:00:25.5]} 50. Ke2 {[%clk 0:00:02.7]} 50... f4 {[%clk 0:00:25.4]} 0-1

[Event "*** Titled Tuesday 3|2 Blitz"]
[Site "Chess.com"]
[Date "2015.06.02"]
[Round "3"]
[White "grandmastergauri"]
[Black "facu57"]
[Result "1-0"]
[WhiteElo "2294"]
[BlackElo "2190"]
[TimeControl "180+2"]
[EndTime "11:35:01 PDT"]
[Termination "grandmastergauri won by resignation"]

1. e4 {[%clk 0:02:56.6]} 1... c6 {[%clk 0:02:59]} 2. c4 {[%clk 0:02:55.2]} 2...
d5 {[%clk 0:02:59.7]} 3. cxd5 {[%clk 0:02:57.1]} 3... cxd5 {[%clk 0:02:58.9]} 4.
exd5 {[%clk 0:02:59]} 4... Qxd5 {[%clk 0:02:58.7]} 5. Nc3 {[%clk 0:02:55.4]}
5... Qa5 {[%clk 0:02:59.2]} 6. Nf3 {[%clk 0:02:55]} 6... Bg4 {[%clk 0:02:57.7]}
7. Bc4 {[%clk 0:02:54.1]} 7... e6 {[%clk 0:02:53.7]} 8. h3 {[%clk 0:02:48.1]}
8... Bxf3 {[%clk 0:02:50.9]} 9. Qxf3 {[%clk 0:02:48.8]} 9... Nc6 {[%clk
0:02:49]} 10. O-O {[%clk 0:02:30.8]} 10... Nf6 {[%clk 0:02:46.1]} 11. d4 {[%clk
0:02:29.6]} 11... Be7 {[%clk 0:02:45.6]} 12. Be3 {[%clk 0:02:20.5]} 12... O-O
{[%clk 0:02:42.9]} 13. Rad1 {[%clk 0:02:14.8]} 13... Bb4 {[%clk 0:02:37.5]} 14.
Ne4 {[%clk 0:02:11.4]} 14... Be7 {[%clk 0:02:32.6]} 15. Nc5 {[%clk 0:01:49.8]}
15... Bxc5 {[%clk 0:02:28.5]} 16. dxc5 {[%clk 0:01:50.9]} 16... Ne5 {[%clk
0:02:27.6]} 17. Qf4 {[%clk 0:01:52]} 17... Nxc4 {[%clk 0:02:23]} 18. Qxc4 {[%clk
0:01:53.9]} 18... Rac8 {[%clk 0:02:21.7]} 19. b4 {[%clk 0:01:23.4]} 19... Qa4
{[%clk 0:02:17.3]} 20. Bf4 {[%clk 0:01:05.9]} 20... Nd5 {[%clk 0:02:14.5]} 21.
Bd6 {[%clk 0:01:06.6]} 21... Rfd8 {[%clk 0:02:13.9]} 22. Rxd5 {[%clk 0:00:47.3]}
22... exd5 {[%clk 0:02:12.3]} 23. Qxd5 {[%clk 0:00:47.8]} 23... Qxb4 {[%clk
0:02:12.2]} 24. Qg5 {[%clk 0:00:37.2]} 24... Qe4 {[%clk 0:01:51.8]} 25. h4
{[%clk 0:00:34.1]} 25... Qg6 {[%clk 0:01:50.2]} 26. Qd5 {[%clk 0:00:34.7]} 26...
b6 {[%clk 0:01:50.6]} 27. h5 {[%clk 0:00:26.1]} 27... Qh6 {[%clk 0:01:50]} 28.
cxb6 {[%clk 0:00:08.9]} 28... Qxd6 {[%clk 0:01:49.5]} 29. Qxd6 {[%clk 0:00:07]}
29... Rxd6 {[%clk 0:01:50.5]} 30. b7 {[%clk 0:00:08.9]} 30... Rb8 {[%clk
0:01:51.4]} 31. Rc1 {[%clk 0:00:09.7]} 31... Rdd8 {[%clk 0:01:52.3]} 32. Rc7
{[%clk 0:00:10.2]} 32... Kf8 {[%clk 0:01:51.3]} 33. g4 {[%clk 0:00:10.5]} 33...
Ke8 {[%clk 0:01:51.7]} 34. g5 {[%clk 0:00:10.7]} 34... Rd7 {[%clk 0:01:36.1]}
35. Rc8+ {[%clk 0:00:11.8]} 35... Rd8 {[%clk 0:01:37.3]} 36. Rc7 {[%clk
0:00:13.3]} 36... Kf8 {[%clk 0:01:36.9]} 37. f4 {[%clk 0:00:14.1]} 37... Kg8
{[%clk 0:01:37.7]} 38. f5 {[%clk 0:00:15.4]} 38... Rd5 {[%clk 0:01:36.8]} 39.
Rc8+ {[%clk 0:00:16.4]} 39... Rd8 {[%clk 0:01:37.8]} 40. Rc7 {[%clk 0:00:18]}
40... h6 {[%clk 0:01:32.2]} 41. g6 {[%clk 0:00:11.8]} 41... fxg6 {[%clk
0:01:30.8]} 42. fxg6 {[%clk 0:00:06.7]} 42... Rf8 {[%clk 0:01:31.1]} 43. Kg2
{[%clk 0:00:07.6]} 43... a5 {[%clk 0:01:31.4]} 44. a4 {[%clk 0:00:08.2]} 44...
Rf5 {[%clk 0:01:30.4]} 45. Rc8+ {[%clk 0:00:09.1]} 45... Rf8 {[%clk 0:01:30.6]}
46. Rc7 {[%clk 0:00:10.7]} 46... Rfd8 {[%clk 0:01:30.7]} 47. Kg3 {[%clk
0:00:10.8]} 47... Re8 {[%clk 0:01:31.7]} 48. Kf2 {[%clk 0:00:10.7]} 48... Kf8
{[%clk 0:01:32.3]} 49. Rf7+ {[%clk 0:00:10.6]} 49... Kg8 {[%clk 0:01:33.2]} 50.
Rc7 {[%clk 0:00:12.5]} 50... Rbd8 {[%clk 0:01:31.6]} 51. Kf3 {[%clk 0:00:08.4]}
51... Rf8+ {[%clk 0:01:13.8]} 52. Ke3 {[%clk 0:00:09.2]} 52... Rfe8+ {[%clk
0:01:05.4]} 53. Kf4 {[%clk 0:00:04.2]} 53... Kf8 {[%clk 0:01:06.4]} 54. Rf7+
{[%clk 0:00:04]} 54... Kg8 {[%clk 0:01:07.4]} 55. Rc7 {[%clk 0:00:05.9]} 55...
Rd4+ {[%clk 0:01:08.8]} 56. Kf5 {[%clk 0:00:07.3]} 56... Rf8+ {[%clk 0:01:05.4]}
57. Ke5 {[%clk 0:00:07.3]} 57... Rdd8 {[%clk 0:01:06.4]} 58. Ke6 {[%clk
0:00:08]} 58... Rfe8+ {[%clk 0:01:04.9]} 59. Kf5 {[%clk 0:00:08.9]} 59... Rd5+
{[%clk 0:01:05.8]} 60. Kf4 {[%clk 0:00:10.6]} 60... Rf8+ {[%clk 0:01:00.1]} 61.
Ke4 {[%clk 0:00:11.7]} 61... Rdd8 {[%clk 0:00:57.8]} 62. Ke5 {[%clk 0:00:12.6]}
62... Rb8 {[%clk 0:00:59.3]} 63. Kd6 {[%clk 0:00:12.7]} 63... Rf6+ {[%clk
0:01:00]} 64. Kc5 {[%clk 0:00:12.7]} 64... Rf5+ {[%clk 0:01:01.2]} 65. Kb6
{[%clk 0:00:14.1]} 65... Rf6+ {[%clk 0:01:02.5]} 66. Ka7 {[%clk 0:00:15.4]}
66... Rf5 {[%clk 0:01:04.4]} 67. Kxb8 {[%clk 0:00:16.6]} 1-0

[Event "*** Titled Tuesday 3|2 Blitz"]
[Site "Chess.com"]
[Date "2015.06.02"]
[Round "3"]
[White "MITerryble"]
[Black "HZMC92"]
[Result "1-0"]
[WhiteElo "2511"]
[BlackElo "2301"]
[TimeControl "180+2"]
[EndTime "11:35:03 PDT"]
[Termination "MITerryble won by resignation"]

1. d4 {[%clk 0:03:01.9]} 1... d5 {[%clk 0:03:01]} 2. Nf3 {[%clk 0:02:57.7]} 2...
e6 {[%clk 0:03:01.5]} 3. c4 {[%clk 0:02:59.2]} 3... c6 {[%clk 0:03:02.8]} 4. g3
{[%clk 0:02:58.5]} 4... Bd6 {[%clk 0:03:00.9]} 5. Bg2 {[%clk 0:02:59.4]} 5...
Nd7 {[%clk 0:02:59.9]} 6. O-O {[%clk 0:02:59.5]} 6... f5 {[%clk 0:03:01.2]} 7.
Qc2 {[%clk 0:02:57]} 7... Ngf6 {[%clk 0:03:02.1]} 8. cxd5 {[%clk 0:02:51.9]}
8... cxd5 {[%clk 0:03:04]} 9. Nc3 {[%clk 0:02:46.6]} 9... O-O {[%clk 0:03:04.9]}
10. Nb5 {[%clk 0:02:46.6]} 10... Bb8 {[%clk 0:03:05.5]} 11. Bf4 {[%clk
0:02:47.5]} 11... Bxf4 {[%clk 0:03:00.4]} 12. gxf4 {[%clk 0:02:49.4]} 12... Nb6
{[%clk 0:02:59]} 13. Rac1 {[%clk 0:02:38.8]} 13... Bd7 {[%clk 0:02:58.7]} 14.
Na3 {[%clk 0:02:31.1]} 14... Rc8 {[%clk 0:02:54.8]} 15. Qd2 {[%clk 0:02:31.8]}
15... Qe7 {[%clk 0:02:53]} 16. Qa5 {[%clk 0:02:31.5]} 16... Bc6 {[%clk
0:02:33.2]} 17. Qxa7 {[%clk 0:02:25.5]} 17... Qb4 {[%clk 0:02:25.9]} 18. Nc2
{[%clk 0:02:19.4]} 18... Qxb2 {[%clk 0:02:23.2]} 19. Rb1 {[%clk 0:01:36.3]}
19... Qxc2 {[%clk 0:02:24.3]} 20. Qxb6 {[%clk 0:01:37.4]} 20... Qxa2 {[%clk
0:02:19.5]} 21. Rb2 {[%clk 0:01:26.1]} 21... Qa6 {[%clk 0:02:07.9]} 22. Qb4
{[%clk 0:01:22.9]} 22... Ne4 {[%clk 0:01:59]} 23. Ne5 {[%clk 0:01:21.9]} 23...
Qa4 {[%clk 0:01:50.6]} 24. Qxa4 {[%clk 0:01:19.9]} 24... Bxa4 {[%clk 0:01:51.8]}
25. Rxb7 {[%clk 0:01:21.8]} 25... Rb8 {[%clk 0:01:49.3]} 26. Ra7 {[%clk
0:01:20.5]} 26... Ra8 {[%clk 0:01:48.9]} 27. Rc7 {[%clk 0:01:19]} 27... Rac8
{[%clk 0:01:46.7]} 28. Rfc1 {[%clk 0:01:19.9]} 28... Rxc7 {[%clk 0:01:40.1]} 29.
Rxc7 {[%clk 0:01:21.8]} 29... Rb8 {[%clk 0:01:41.3]} 30. Bxe4 {[%clk 0:01:16.6]}
30... dxe4 {[%clk 0:01:36.4]} 31. h4 {[%clk 0:01:04.5]} 31... Bb3 {[%clk
0:01:36.3]} 32. h5 {[%clk 0:01:03.7]} 32... e3 {[%clk 0:01:34]} 33. fxe3 {[%clk
0:01:01.5]} 33... Bd5 {[%clk 0:01:34.5]} 34. Kf2 {[%clk 0:01:01.4]} 34... h6
{[%clk 0:01:33.4]} 35. Ng6 {[%clk 0:00:59.1]} 35... Kh7 {[%clk 0:01:24.8]} 36.
Re7 {[%clk 0:00:53.8]} 36... Kg8 {[%clk 0:01:17]} 37. Ke1 {[%clk 0:00:53.2]}
37... Kh7 {[%clk 0:01:15.7]} 38. Kd2 {[%clk 0:00:54.2]} 38... Rc8 {[%clk
0:01:16.9]} 39. Rd7 {[%clk 0:00:52.9]} 39... Be4 {[%clk 0:01:15.9]} 40. Rd6
{[%clk 0:00:49.9]} 40... Rc2+ {[%clk 0:01:11.2]} 41. Kd1 {[%clk 0:00:50.9]}
41... Ra2 {[%clk 0:01:07.2]} 42. Rd8 {[%clk 0:00:49.2]} 42... Ra8 {[%clk
0:01:08]} 43. Rd6 {[%clk 0:00:19.6]} 43... Ra1+ {[%clk 0:01:02.8]} 44. Kd2
{[%clk 0:00:20.2]} 44... Rh1 {[%clk 0:00:57.5]} 45. Rd7 {[%clk 0:00:20]} 45...
Rxh5 {[%clk 0:00:56.7]} 46. Nf8+ {[%clk 0:00:21.1]} 46... Kg8 {[%clk 0:00:56.8]}
47. Nxe6 {[%clk 0:00:23]} 47... g5 {[%clk 0:00:56.5]} 48. fxg5 {[%clk
0:00:22.5]} 48... hxg5 {[%clk 0:00:57.8]} 49. Rg7+ {[%clk 0:00:23.4]} 49... Kh8
{[%clk 0:00:58.9]} 50. Rxg5 {[%clk 0:00:24.8]} 50... Rh6 {[%clk 0:00:56.3]} 51.
Nc5 {[%clk 0:00:21.6]} 51... Bb1 {[%clk 0:00:56.1]} 52. Rg1 {[%clk 0:00:17.9]}
52... Rb6 {[%clk 0:00:55.8]} 53. Kc3 {[%clk 0:00:15]} 53... Ba2 {[%clk 0:00:53]}
54. Rf1 {[%clk 0:00:15.6]} 54... Bb1 {[%clk 0:00:51]} 55. d5 {[%clk 0:00:14.5]}
55... Kg7 {[%clk 0:00:44.5]} 56. d6 {[%clk 0:00:15]} 56... Ba2 {[%clk 0:00:43]}
57. d7 {[%clk 0:00:14.5]} 57... Rd6 {[%clk 0:00:42.2]} 58. Rxf5 {[%clk 0:00:15]}
58... Kg6 {[%clk 0:00:43.2]} 59. Rf4 {[%clk 0:00:15.6]} 59... Be6 {[%clk
0:00:44.1]} 60. Nxe6 {[%clk 0:00:15.2]} 60... Rxd7 {[%clk 0:00:45.6]} 61. Nf8+
{[%clk 0:00:16.2]} 1-0

[Event "*** Titled Tuesday 3|2 Blitz"]
[Site "Chess.com"]
[Date "2015.06.02"]
[Round "3"]
[White "oggy1984"]
[Black "Dlugy"]
[Result "0-1"]
[WhiteElo "2312"]
[BlackElo "2559"]
[TimeControl "180+2"]
[EndTime "11:35:32 PDT"]
[Termination "Dlugy won by resignation"]

1. d4 {[%clk 0:03:01.9]} 1... Nf6 {[%clk 0:02:59.7]} 2. c4 {[%clk 0:02:55.7]}
2... g6 {[%clk 0:02:59.9]} 3. Nc3 {[%clk 0:02:51.6]} 3... Bg7 {[%clk 0:03:00.9]}
4. e4 {[%clk 0:02:46]} 4... d6 {[%clk 0:03:01.3]} 5. f4 {[%clk 0:02:45.4]} 5...
O-O {[%clk 0:03:02.4]} 6. Nf3 {[%clk 0:02:36.8]} 6... c5 {[%clk 0:03:03.4]} 7.
Be2 {[%clk 0:02:21]} 7... cxd4 {[%clk 0:03:03.9]} 8. Nxd4 {[%clk 0:02:19.2]}
8... Nc6 {[%clk 0:03:04.2]} 9. Be3 {[%clk 0:02:16.6]} 9... e6 {[%clk 0:02:58.3]}
10. Ndb5 {[%clk 0:02:12.4]} 10... d5 {[%clk 0:02:55.8]} 11. cxd5 {[%clk
0:02:08.8]} 11... exd5 {[%clk 0:02:56.6]} 12. e5 {[%clk 0:02:05.6]} 12... Ng4
{[%clk 0:02:54.3]} 13. Bc5 {[%clk 0:01:54.7]} 13... d4 {[%clk 0:02:27.6]} 14.
Nxd4 {[%clk 0:01:49]} 14... Ne3 {[%clk 0:02:02]} 15. Nxc6 {[%clk 0:01:44]} 15...
Nxg2+ {[%clk 0:01:41.9]} 16. Kf2 {[%clk 0:01:37.4]} 16... Qh4+ {[%clk
0:01:35.4]} 17. Kxg2 {[%clk 0:01:32.5]} 17... bxc6 {[%clk 0:01:33.5]} 18. Qd3
{[%clk 0:01:26.1]} 18... Qxf4 {[%clk 0:01:32.5]} 19. Bxf8 {[%clk 0:01:19.1]}
19... Bxf8 {[%clk 0:01:27]} 20. Qg3 {[%clk 0:01:15.8]} 20... Qb4 {[%clk
0:01:27.1]} 21. b3 {[%clk 0:01:09]} 21... Bf5 {[%clk 0:01:18.5]} 22. Rhd1 {[%clk
0:01:06.7]} 22... Bg7 {[%clk 0:01:17.6]} 23. Bc4 {[%clk 0:01:01.2]} 23... Re8
{[%clk 0:01:18]} 24. Re1 {[%clk 0:01:00.4]} 24... Qa5 {[%clk 0:01:17.7]} 25.
Rad1 {[%clk 0:00:53.4]} 25... Bxe5 {[%clk 0:01:18.3]} 26. Rxe5 {[%clk
0:00:53.9]} 26... Rxe5 {[%clk 0:01:18.4]} 27. Re1 {[%clk 0:00:50.8]} 27... Rxe1
{[%clk 0:01:14.3]} 28. Qxe1 {[%clk 0:00:52.7]} 28... Kg7 {[%clk 0:01:15.9]} 29.
a4 {[%clk 0:00:47.4]} 29... h5 {[%clk 0:01:09.9]} 30. Qe3 {[%clk 0:00:48]} 30...
Qd8 {[%clk 0:01:01.9]} 31. Ne2 {[%clk 0:00:43.8]} 31... Qc7 {[%clk 0:00:43.3]}
32. Qd4+ {[%clk 0:00:41.5]} 32... f6 {[%clk 0:00:40.6]} 33. Nf4 {[%clk
0:00:39.8]} 33... Qe7 {[%clk 0:00:40]} 34. Kf2 {[%clk 0:00:31.3]} 34... h4
{[%clk 0:00:37.9]} 35. a5 {[%clk 0:00:24.8]} 35... g5 {[%clk 0:00:37.3]} 36. Ne2
{[%clk 0:00:23]} 36... Qc7 {[%clk 0:00:37.7]} 37. Kg1 {[%clk 0:00:15.3]} 37...
Qxa5 {[%clk 0:00:38.6]} 38. Nc3 {[%clk 0:00:14.2]} 38... Qa1+ {[%clk 0:00:38.3]}
39. Kg2 {[%clk 0:00:13.6]} 39... Qb2+ {[%clk 0:00:39.4]} 40. Kg1 {[%clk
0:00:13.9]} 40... Qa1+ {[%clk 0:00:37.2]} 41. Kf2 {[%clk 0:00:14.1]} 41... Qb2+
{[%clk 0:00:33.1]} 42. Ne2 {[%clk 0:00:14.5]} 42... Qxd4+ {[%clk 0:00:27.2]} 43.
Nxd4 {[%clk 0:00:16.4]} 43... Bd7 {[%clk 0:00:29.1]} 44. Be6 {[%clk 0:00:16.7]}
44... Be8 {[%clk 0:00:28.3]} 45. b4 {[%clk 0:00:16]} 45... Kg6 {[%clk
0:00:26.6]} 46. Bf5+ {[%clk 0:00:16.5]} 46... Kf7 {[%clk 0:00:27.7]} 47. Be4
{[%clk 0:00:18.4]} 47... Ke7 {[%clk 0:00:20.8]} 48. Bxc6 {[%clk 0:00:19.2]}
48... Bg6 {[%clk 0:00:21.7]} 49. Nb5 {[%clk 0:00:19.7]} 49... a6 {[%clk
0:00:23]} 50. Nd4 {[%clk 0:00:17.3]} 50... Kd6 {[%clk 0:00:24.4]} 51. Ke3 {[%clk
0:00:18.3]} 51... f5 {[%clk 0:00:25]} 52. Bb7 {[%clk 0:00:16.3]} 52... f4+
{[%clk 0:00:26.4]} 53. Kd2 {[%clk 0:00:16.9]} 53... g4 {[%clk 0:00:26.3]} 54.
Bxa6 {[%clk 0:00:17]} 54... Be4 {[%clk 0:00:19.8]} 55. Ne2 {[%clk 0:00:15.2]}
55... f3 {[%clk 0:00:20.3]} 56. Nc3 {[%clk 0:00:16]} 56... Ba8 {[%clk 0:00:21]}
57. Ke3 {[%clk 0:00:16.7]} 57... g3 {[%clk 0:00:20.9]} 58. hxg3 {[%clk
0:00:17.7]} 58... hxg3 {[%clk 0:00:22.3]} 59. Bd3 {[%clk 0:00:16.1]} 59... f2
{[%clk 0:00:17.9]} 60. Ne4+ {[%clk 0:00:12.1]} 60... Bxe4 {[%clk 0:00:18.2]} 61.
Kxe4 {[%clk 0:00:12.1]} 61... g2 {[%clk 0:00:19.1]} 0-1

[Event "*** Titled Tuesday 3|2 Blitz"]
[Site "Chess.com"]
[Date "2015.06.02"]
[Round "3"]
[White "GeorgMeier"]
[Black "VSERGUEI"]
[Result "1-0"]
[WhiteElo "2741"]
[BlackElo "2479"]
[TimeControl "180+2"]
[EndTime "11:35:43 PDT"]
[Termination "GeorgMeier won on time"]

1. Nf3 {[%clk 0:03:01.9]} 1... d5 {[%clk 0:03:00.7]} 2. g3 {[%clk 0:03:02.9]}
2... Bf5 {[%clk 0:02:59.4]} 3. Bg2 {[%clk 0:03:04]} 3... e6 {[%clk 0:03:00.4]}
4. c4 {[%clk 0:03:03.8]} 4... c6 {[%clk 0:03:00.6]} 5. cxd5 {[%clk 0:02:40.6]}
5... cxd5 {[%clk 0:03:00.5]} 6. Qb3 {[%clk 0:02:40.2]} 6... Qb6 {[%clk
0:02:59.7]} 7. Qxb6 {[%clk 0:02:40.4]} 7... axb6 {[%clk 0:03:00.3]} 8. Nc3
{[%clk 0:02:40.5]} 8... Nc6 {[%clk 0:03:00.4]} 9. O-O {[%clk 0:02:33.4]} 9...
Nf6 {[%clk 0:02:57.4]} 10. d3 {[%clk 0:02:24.9]} 10... Bc5 {[%clk 0:02:49.2]}
11. Nh4 {[%clk 0:02:21.1]} 11... Bg6 {[%clk 0:02:46]} 12. Bd2 {[%clk 0:02:09.4]}
12... Ke7 {[%clk 0:02:40.8]} 13. Rfc1 {[%clk 0:02:02.6]} 13... Rhc8 {[%clk
0:02:39.7]} 14. Nxg6+ {[%clk 0:02:02.2]} 14... hxg6 {[%clk 0:02:39.8]} 15. h3
{[%clk 0:02:02.6]} 15... Nd4 {[%clk 0:02:10.3]} 16. Kf1 {[%clk 0:01:33.8]} 16...
Kd7 {[%clk 0:02:10]} 17. Rab1 {[%clk 0:01:19.8]} 17... Bb4 {[%clk 0:02:07]} 18.
e3 {[%clk 0:01:17]} 18... Bxc3 {[%clk 0:02:05.1]} 19. Bxc3 {[%clk 0:00:52.9]}
19... Nb5 {[%clk 0:02:02.8]} 20. Bxf6 {[%clk 0:00:53.3]} 20... gxf6 {[%clk
0:02:01.6]} 21. a3 {[%clk 0:00:54]} 21... Nd6 {[%clk 0:01:56]} 22. h4 {[%clk
0:00:52.6]} 22... f5 {[%clk 0:01:56.4]} 23. Ke2 {[%clk 0:00:53.5]} 23... Rc5
{[%clk 0:01:54.1]} 24. Kd2 {[%clk 0:00:51.3]} 24... Rac8 {[%clk 0:01:51.3]} 25.
Bf3 {[%clk 0:00:52]} 25... Ke7 {[%clk 0:01:45]} 26. Bd1 {[%clk 0:00:46.9]} 26...
e5 {[%clk 0:01:35.7]} 27. Rc3 {[%clk 0:00:46.3]} 27... Nb5 {[%clk 0:01:25.4]}
28. Rb3 {[%clk 0:00:47.2]} 28... R8c6 {[%clk 0:01:24.1]} 29. Rb4 {[%clk
0:00:40.6]} 29... d4 {[%clk 0:01:16.4]} 30. Ba4 {[%clk 0:00:40.8]} 30... dxe3+
{[%clk 0:00:22.2]} 31. fxe3 {[%clk 0:00:42.7]} 31... Nc7 {[%clk 0:00:18.1]} 32.
Bxc6 {[%clk 0:00:42.7]} 32... Rxc6 {[%clk 0:00:18.9]} 33. Rc4 {[%clk 0:00:27.9]}
33... Nd5 {[%clk 0:00:17.4]} 34. Rbc1 {[%clk 0:00:21.6]} 34... Kd6 {[%clk
0:00:17.4]} 35. a4 {[%clk 0:00:21.8]} 35... Nf6 {[%clk 0:00:14.3]} 36. b4 {[%clk
0:00:18.3]} 36... Nd5 {[%clk 0:00:14.9]} 37. e4 {[%clk 0:00:14.7]} 37... Nc7
{[%clk 0:00:13]} 38. Rxc6+ {[%clk 0:00:13.7]} 38... bxc6 {[%clk 0:00:13.6]} 39.
exf5 {[%clk 0:00:15.3]} 39... gxf5 {[%clk 0:00:15]} 40. h5 {[%clk 0:00:16.9]}
40... Ne6 {[%clk 0:00:15.9]} 41. h6 {[%clk 0:00:17.9]} 41... Ng5 {[%clk
0:00:17.1]} 42. a5 {[%clk 0:00:17.8]} 42... bxa5 {[%clk 0:00:17.7]} 43. bxa5
{[%clk 0:00:19.7]} 43... Kc7 {[%clk 0:00:17.7]} 44. a6 {[%clk 0:00:21]} 44...
Kb6 {[%clk 0:00:18.6]} 45. a7 {[%clk 0:00:21.8]} 45... Kxa7 {[%clk 0:00:19.8]}
46. Rxc6 {[%clk 0:00:23]} 46... e4 {[%clk 0:00:21]} 47. Rf6 {[%clk 0:00:22]}
47... Nf3+ {[%clk 0:00:21.7]} 48. Ke3 {[%clk 0:00:22.9]} 48... Ne5 {[%clk
0:00:22.9]} 49. Rxf5 {[%clk 0:00:21.6]} 49... Ng4+ {[%clk 0:00:23.7]} 50. Kxe4
{[%clk 0:00:22.1]} 50... Nxh6 {[%clk 0:00:25.1]} 51. Rf6 {[%clk 0:00:23.5]}
51... Ng4 {[%clk 0:00:26]} 52. Rxf7+ {[%clk 0:00:24.8]} 52... Kb6 {[%clk
0:00:27.3]} 53. Rf4 {[%clk 0:00:24.8]} 53... Nh2 {[%clk 0:00:25.5]} 54. g4
{[%clk 0:00:26.2]} 54... Nxg4 {[%clk 0:00:26]} 55. Rxg4 {[%clk 0:00:27.4]} 55...
Kc5 {[%clk 0:00:27.1]} 56. Rg6 {[%clk 0:00:28.2]} 56... Kb4 {[%clk 0:00:27.6]}
57. Kd4 {[%clk 0:00:29.2]} 57... Kb5 {[%clk 0:00:28.1]} 58. Rf6 {[%clk
0:00:29.5]} 58... Kb4 {[%clk 0:00:28]} 59. Rb6+ {[%clk 0:00:30.3]} 59... Ka5
{[%clk 0:00:27.6]} 60. Kc5 {[%clk 0:00:31.2]} 60... Ka4 {[%clk 0:00:28.4]} 61.
Rb8 {[%clk 0:00:31.8]} 61... Ka3 {[%clk 0:00:29]} 62. Kc4 {[%clk 0:00:33.2]}
62... Ka2 {[%clk 0:00:29.6]} 63. Kc3 {[%clk 0:00:34.5]} 63... Ka1 {[%clk
0:00:06.9]} 64. d4 {[%clk 0:00:35.2]} 1-0